bitfinex/quotes_SOLUSD_20250206
["timestamp","ask_amount","ask_price","bid_price","bid_amount"]
[1738862040448,43.23683829,190.48,190.37,21.70321811]
[1738862040636,43.23683829,190.5,190.37,21.70321811]
[1738862040837,30.0,190.48,190.37,21.70321811]
[1738862041041,13.23683829,190.45,190.37,14.19933811]
[1738862041246,30.0,190.44,190.36,2.35512845]
[1738862041547,43.23683829,190.46,190.36,22.02007698]
[1738862041738,30.0,190.44,190.36,22.02007698]
[1738862041932,43.23683829,190.44,190.36,15.76697698]
[1738862042253,13.23683829,190.45,190.36,21.23244853]
[1738862042455,13.23683829,190.45,190.37,0.78767947]
[1738862042953,13.23683829,190.45,190.37,6.04057947]
[1738862043132,30.0,190.44,190.37,6.04057947]
[1738862043332,43.23683829,190.42,190.33,13.2421288]
[1738862043531,43.23683829,190.42,190.36,20.0]
[1738862043532,30.0,190.42,190.36,20.0]
[1738862043736,30.0,190.42,190.35,0.78772294]
[1738862045152,43.23683829,190.44,190.35,2.78772294]
[1738862045454,43.23683829,190.44,190.35,7.04102294]
[1738862045656,13.23683829,190.43,190.36,0.03]
[1738862046354,30.0,190.42,190.36,0.03]
[1738862046658,13.23683829,190.4,190.36,0.03]
[1738862046829,30.0,190.42,190.36,0.03]
[1738862046830,13.23683829,190.37,190.36,0.03]
[1738862047032,0.11396677,190.39,190.36,0.03]
[1738862048153,13.35080506,190.39,190.36,0.03]
[1738862048858,43.23683829,190.37,190.36,0.03]
[1738862049840,43.36232829,190.37,190.36,0.03]
[1738862050251,30.0,190.34,190.28,20.0]
[1738862050445,43.23683829,190.34,190.28,20.0]
[1738862050663,13.76213829,190.35,190.28,20.0]
[1738862050960,13.23683829,190.37,190.29,14.41184853]
[1738862051163,13.23683829,190.37,190.29,13.41184853]
[1738862051363,13.23683829,190.37,190.29,14.41184853]
[1738862051961,13.23683829,190.37,190.29,16.19976516]
[1738862052356,13.23683829,190.36,190.29,16.19976516]
[1738862052555,13.23683829,190.36,190.29,15.41184853]
[1738862053068,0.11474024,190.3,190.29,15.41184853]
[1738862053868,0.11474024,190.3,190.28,21.78795281]
[1738862054162,0.11474024,190.3,190.29,20.0]
[1738862054364,0.11474024,190.3,190.29,20.78800472]
[1738862054868,0.11474024,190.3,190.29,34.19985325]
[1738862056666,0.11474024,190.3,190.29,41.45495325]
[1738862056962,0.11474024,190.3,190.29,34.19985325]
[1738862057479,0.11474024,190.3,190.29,20.0]
[1738862057773,0.11474024,190.3,190.27,20.7879919]
[1738862058138,13.35157853,190.3,190.26,0.03]
[1738862058337,0.11474024,190.3,190.26,0.03]
[1738862058543,0.11474024,190.3,190.26,14.22997221]
[1738862059260,0.11474024,190.3,190.26,0.81812368]
[1738862059446,13.35157853,190.3,190.26,0.03]
[1738862059654,0.11474024,190.3,190.26,0.03]
[1738862059981,0.11474024,190.3,190.26,14.23000504]
[1738862060852,0.11474024,190.3,190.26,0.03]
[1738862061548,0.11474024,190.3,190.26,20.03]
[1738862062846,0.11474024,190.3,190.26,20.81814424]
[1738862063249,0.11474024,190.3,190.26,20.03]
[1738862063443,13.23683829,190.28,190.26,0.03]
[1738862064150,0.64024024,190.3,190.26,0.03]
[1738862064151,13.23683829,190.29,190.26,0.03]
[1738862064484,13.35157853,190.3,190.26,0.03]
[1738862065484,13.23683829,190.29,190.26,0.03]
[1738862065689,0.11474024,190.3,190.26,0.03]
[1738862065966,0.11474024,190.3,190.26,0.81812855]
[1738862066885,0.11474024,190.3,190.27,14.41184853]
[1738862067064,0.11474024,190.3,190.29,13.41184853]
[1738862067861,0.11474024,190.3,190.29,19.66694853]
[1738862068253,0.11474024,190.3,190.29,18.66694853]
[1738862068755,0.11474024,190.3,190.29,13.41184853]
[1738862070473,0.11474024,190.3,190.29,14.41184853]
[1738862070979,0.11474024,190.3,190.29,13.41184853]
[1738862071158,0.11474024,190.3,190.29,14.41184853]
[1738862071478,0.11408288,190.32,190.31,2.50196]
[1738862071677,0.10733997,190.33,190.32,15.91380853]
[1738862071879,0.10665912,190.37,190.34,41.16750853]
[1738862072070,0.10665912,190.37,190.34,43.4860668]
[1738862072381,0.10665912,190.37,190.35,15.66282853]
[1738862072679,0.10665912,190.37,190.35,16.4503062]
[1738862073064,0.21086732,190.36,190.35,16.4503062]
[1738862073782,0.09653912,190.37,190.36,15.66282853]
[1738862074480,0.09653912,190.37,190.36,15.91380853]
[1738862074784,0.11437378,190.39,190.38,15.91380853]
[1738862075002,0.10664469,190.4,190.39,15.91380853]
[1738862075163,0.063,190.51,190.42,35.66282853]
[1738862075462,0.063,190.51,190.42,42.89949948]
[1738862075662,0.063,190.51,190.42,43.15047948]
[1738862075882,0.063,190.51,190.42,185.60197948]
[1738862076088,1e-08,190.45,190.44,15.66282853]
[1738862076262,1e-08,190.45,190.44,16.44997873]
[1738862076588,1e-08,190.45,190.44,17.77003537]
[1738862077185,1e-08,190.45,190.44,23.02093537]
[1738862077871,0.063,190.51,190.49,1.25098]
[1738862078075,0.063,190.51,190.5,14.1988951]
[1738862078582,0.063,190.51,190.5,15.1988951]
[1738862078973,0.063,190.51,190.5,14.1988951]
[1738862080093,0.063,190.51,190.5,20.4481951]
[1738862080586,0.063,190.51,190.5,19.4481951]
[1738862080771,0.063,190.51,190.5,14.1988951]
[1738862082091,0.063,190.51,190.5,15.1988951]
[1738862082588,0.063,190.51,190.5,20.4481951]
[1738862083080,0.063,190.51,190.5,14.1988951]
[1738862083269,0.063,190.51,190.5,15.1988951]
[1738862083469,0.063,190.51,190.5,14.1988951]
[1738862083685,0.063,190.51,190.5,15.1988951]
[1738862084293,0.063,190.51,190.5,14.1988951]
[1738862086478,0.063,190.51,190.5,15.7008551]
[1738862086677,0.063,190.51,190.5,159.1501551]
[1738862086891,0.063,190.52,190.51,15.91380853]
[1738862087683,0.063,190.54,190.53,22.0]
[1738862087880,0.063,190.54,190.53,173.90048736]
[1738862088090,0.063,190.54,190.53,173.11380853]
[1738862088593,0.063,190.54,190.53,178.36230853]
[1738862091897,0.063,190.54,190.53,177.98583853]
[1738862092098,0.063,190.54,190.53,157.2]
[1738862092393,0.063,190.54,190.53,20.0]
[1738862092601,0.063,190.54,190.53,20.78695492]
[1738862092803,0.063,190.54,190.53,0.78695492]
[1738862093120,0.17403741,190.54,190.52,0.78696326]
[1738862093788,0.17403741,190.54,190.53,20.0]
[1738862095181,0.17403741,190.54,190.51,1.78699871]
[1738862095399,13.23683829,190.53,190.48,6.03659789]
[1738862095581,13.23683829,190.53,190.48,0.78699789]
[1738862095782,13.23683829,190.52,190.48,0.78699789]
[1738862096090,13.23683829,190.52,190.49,20.0]
[1738862096900,13.23683829,190.52,190.46,14.19904738]
[1738862097207,13.23683829,190.52,190.5,0.03]
[1738862097703,13.23683829,190.53,190.5,0.03]
[1738862097891,0.17403741,190.54,190.5,0.81718295]
[1738862098093,0.17403741,190.54,190.51,14.41184853]
[1738862098285,0.17403741,190.54,190.5,0.81695496]
[1738862098490,0.17403741,190.54,190.5,0.03]
[1738862099694,0.17403741,190.54,190.5,0.81703772]
[1738862100403,0.17403741,190.54,190.5,1.81703772]
[1738862100611,0.17403741,190.54,190.53,21.0]
[1738862100811,0.17403741,190.54,190.53,35.19872941]
[1738862100995,0.17403741,190.54,190.53,35.70068941]
[1738862101187,0.17403741,190.54,190.53,41.94918941]
[1738862101681,0.17403741,190.54,190.53,0.78688088]
[1738862101886,0.17403741,190.54,190.51,13.41184853]
[1738862102206,0.17403741,190.54,190.53,35.19875698]
[1738862102789,0.17403741,190.54,190.53,34.19875698]
[1738862103187,0.17403741,190.54,190.53,35.19875698]
[1738862103392,0.17403741,190.54,190.53,34.19875698]
[1738862103589,0.17403741,190.54,190.53,20.78690845]
[1738862104283,0.17403741,190.54,190.51,0.78702715]
[1738862104687,13.4108757,190.54,190.51,0.78702715]
[1738862104888,0.17403741,190.54,190.5,0.03]
[1738862105108,13.23683829,190.53,190.5,0.03]
[1738862105287,13.23683829,190.53,190.5,20.03]
[1738862105494,13.23683829,190.52,190.5,0.03]
[1738862105801,0.17403741,190.54,190.5,0.03]
[1738862105802,13.23683829,190.51,190.5,0.03]
[1738862105985,13.23683829,190.52,190.5,0.03]
[1738862106191,13.23683829,190.53,190.5,0.03]
[1738862106894,21.19045487,190.51,190.5,0.03]
[1738862108026,51.96633487,190.51,190.5,0.03]
[1738862108199,73.15678974,190.51,190.5,0.03]
[1738862108715,73.28227974,190.51,190.5,0.03]
[1738862110812,21.19045487,190.51,190.5,0.03]
[1738862113121,21.30190313,190.51,190.5,0.03]
[1738862113700,0.11144826,190.51,190.5,0.03]
[1738862114513,0.11144826,190.51,190.5,0.81716636]
[1738862114818,0.11144826,190.51,190.5,20.47831489]
[1738862115203,0.11144826,190.51,190.5,6.06646636]
[1738862115621,0.11144826,190.51,190.5,19.47831489]
[1738862116500,0.11144826,190.51,190.5,20.47831489]
[1738862116815,0.11144826,190.51,190.5,21.60380489]
[1738862118597,0.11144826,190.51,190.5,21.72929489]
[1738862118801,0.11144826,190.51,190.5,21.98027489]
[1738862120516,0.11144826,190.51,190.5,20.98027489]
[1738862120711,0.11144826,190.51,190.5,21.98027489]
[1738862121513,0.11144826,190.51,190.5,20.98027489]
[1738862121705,0.11144826,190.51,190.5,21.98027489]
[1738862121917,2.23e-05,190.52,190.51,15.91380853]
[1738862122418,4.788e-05,190.55,190.54,35.91380853]
[1738862122620,4.788e-05,190.55,190.54,36.70050945]
[1738862122797,5.251e-05,190.56,190.55,15.91380853]
[1738862123004,0.17399231,190.59,190.57,15.91380853]
[1738862123223,8.376e-05,190.58,190.57,16.7003081]
[1738862123799,0.063,190.67,190.62,2.12549]
[1738862124024,0.063,190.67,190.62,16.70024909]
[1738862124413,0.0001,190.63,190.62,16.70024909]
[1738862125008,0.063,190.67,190.66,21.12549]
[1738862125215,0.063,190.67,190.66,36.70010428]
[1738862125533,0.0001,190.67,190.66,36.70010428]
[1738862125902,0.0001,190.67,190.66,41.94500428]
[1738862127123,0.0001,190.67,190.66,40.44304428]
[1738862127525,0.0001,190.67,190.66,40.56853428]
[1738862127851,0.0001,190.67,190.66,41.94500428]
[1738862128032,0.0001,190.67,190.66,179.14500428]
[1738862128240,0.0001,190.67,190.66,178.35870853]
[1738862129440,0.03,190.71,190.7,35.91380853]
[1738862129617,0.03,190.74,190.73,35.91380853]
[1738862129825,0.03,190.74,190.73,36.69970685]
[1738862130134,0.03,190.74,190.73,41.94270685]
[1738862130346,0.03,190.75,190.74,15.53733853]
[1738862132018,0.03,190.75,190.74,20.78003853]
[1738862133039,0.13967778,190.75,190.74,20.78003853]
[1738862133309,0.13967778,190.75,190.74,21.15650853]
[1738862133520,0.063,190.87,190.79,15.91380853]
[1738862133751,0.063,190.87,190.79,16.69945928]
[1738862133953,0.063,190.87,190.79,17.98651622]
[1738862134739,21.19045487,190.85,190.79,0.78565075]
[1738862134937,21.33449017,190.83,190.77,0.78587957]
[1738862135130,21.28966578,190.81,190.75,0.78595605]
[1738862135311,21.30129266,190.8,190.74,0.78595605]
[1738862135513,0.11083779,190.8,190.74,6.02855605]
[1738862135758,21.30129266,190.8,190.74,0.78595605]
[1738862135921,21.19045487,190.78,190.71,0.78608464]
[1738862136117,21.19045487,190.78,190.61,218.8]
[1738862136118,21.19045487,190.76,190.69,0.78622751]
[1738862136311,21.19045487,190.75,190.66,0.78630249]
[1738862136509,52.07637266,190.8,190.66,0.78630249]
[1738862136510,21.19045487,190.73,190.66,0.78630249]
[1738862136753,21.19045487,190.74,190.66,0.78630249]
[1738862136917,21.19045487,190.74,190.69,20.0]
[1738862137727,21.19045487,190.7,190.64,0.78631372]
[1738862137930,21.19045487,190.7,190.61,6.03231372]
[1738862138128,21.19045487,190.68,190.61,0.78631372]
[1738862138313,21.19045487,190.67,190.61,13.41184853]
[1738862138523,21.19045487,190.71,190.63,13.41184853]
[1738862138719,21.19045487,190.72,190.65,13.41184853]
[1738862139032,21.19045487,190.67,190.61,0.78641254]
[1738862139242,21.19045487,190.67,190.62,20.0]
[1738862139631,21.19045487,190.68,190.62,20.0]
[1738862140147,21.19045487,190.69,190.62,20.0]
[1738862140460,21.19045487,190.72,190.64,13.41184853]
[1738862140746,21.19045487,190.73,190.67,20.0]
[1738862141037,21.19045487,190.73,190.67,20.78639361]
[1738862141343,21.19045487,190.76,190.67,20.78639361]
[1738862141817,21.19045487,190.77,190.67,20.78639361]
[1738862142231,21.19045487,190.75,190.67,20.78639361]
[1738862142536,21.19045487,190.74,190.69,20.0]
[1738862142853,21.19045487,190.72,190.65,0.78635651]
[1738862143422,21.19045487,190.73,190.65,0.78635651]
[1738862144238,21.19045487,190.72,190.66,13.41184853]
[1738862145635,19.80700872,190.72,190.65,6.03135651]
[1738862145834,21.19045487,190.68,190.62,0.78645856]
[1738862146028,21.19045487,190.67,190.6,6.06308289]
[1738862146226,21.19045487,190.67,190.6,0.81658289]
[1738862146426,21.19045487,190.67,190.64,20.0]
[1738862147030,21.19045487,190.68,190.61,20.0]
[1738862147226,21.19045487,190.7,190.62,6.03257985]
[1738862147439,21.19045487,190.72,190.65,20.0]
[1738862147647,21.25345487,190.75,190.66,0.78642975]
[1738862148530,21.19045487,190.73,190.66,0.78642975]
[1738862149140,21.19045487,190.74,190.66,6.03122975]
[1738862149523,21.19045487,190.73,190.66,6.03122975]
[1738862150241,21.19045487,190.72,190.66,0.78642975]
[1738862150434,21.19045487,190.7,190.65,27.686]
[1738862151026,21.19045487,190.7,190.66,20.0]
[1738862151945,21.19045487,190.71,190.67,20.0]
[1738862153049,0.11461623,190.68,190.66,5.2447]
[1738862153246,0.11461623,190.68,190.67,0.78638709]
[1738862155943,0.11461623,190.68,190.65,0.78642972]
[1738862156148,21.19045487,190.66,190.64,0.03]
[1738862156447,21.19045487,190.65,190.64,0.03]
[1738862157652,21.19045487,190.66,190.64,0.03]
[1738862157831,21.19045487,190.67,190.64,0.03]
[1738862158031,21.3050711,190.68,190.64,0.03]
[1738862158644,21.19045487,190.67,190.64,0.03]
[1738862159132,21.3050711,190.68,190.64,0.03]
[1738862159738,21.19045487,190.67,190.64,0.03]
[1738862159938,21.19045487,190.66,190.64,0.03]
[1738862160145,21.19045487,190.67,190.64,0.03]
[1738862160354,21.3050711,190.68,190.64,0.03]
[1738862160635,21.19045487,190.67,190.64,0.03]
[1738862160832,21.19045487,190.65,190.64,0.03]
[1738862161156,21.19045487,190.67,190.64,0.03]
[1738862161539,21.19045487,190.66,190.64,0.03]
[1738862161735,21.19045487,190.67,190.64,0.03]
[1738862161941,0.11461623,190.68,190.64,0.03]
[1738862162145,0.11461623,190.68,190.64,0.81652491]
[1738862162544,21.3050711,190.68,190.64,0.03]
[1738862162750,21.3050711,190.68,190.64,20.03]
[1738862162961,21.19045487,190.67,190.64,20.03]
[1738862163453,21.19045487,190.65,190.64,0.03]
[1738862165247,21.71495487,190.65,190.64,0.03]
[1738862165759,35.1268034,190.65,190.64,0.03]
[1738862166740,36.79083095,190.65,190.64,0.03]
[1738862166940,30.0,190.63,190.6,0.03]
[1738862167147,21.19045487,190.61,190.6,0.03]
[1738862167447,72.38090974,190.61,190.6,0.03]
[1738862167832,64.6023034,190.61,190.6,0.03]
[1738862168050,64.6023034,190.61,190.51,1.6053]
[1738862168051,64.6023034,190.61,190.51,0.4884918]
[1738862168354,21.19045487,190.62,190.54,20.0]
[1738862168657,21.19045487,190.64,190.55,6.8083374]
[1738862168839,21.19045487,190.65,190.59,20.0]
[1738862169436,21.19045487,190.66,190.6,0.78672302]
[1738862169735,21.3050711,190.68,190.6,0.78672302]
[1738862170163,21.19045487,190.67,190.6,0.78672302]
[1738862170754,21.3050711,190.68,190.6,0.78672302]
[1738862170958,21.3050711,190.68,190.61,5.2463]
[1738862171259,21.3050711,190.68,190.62,0.78659229]
[1738862171559,21.19045487,190.65,190.6,0.78659559]
[1738862171757,0.11461623,190.68,190.6,0.78659559]
[1738862172058,21.19045487,190.66,190.6,0.78670617]
[1738862172456,21.19045487,190.67,190.6,0.78670617]
[1738862173061,0.10833521,190.61,190.6,6.03300617]
[1738862174138,3.521e-05,190.61,190.6,21.9468147]
[1738862174340,9.296e-05,190.63,190.62,2.37647]
[1738862174543,9.296e-05,190.63,190.62,2.16281967]
[1738862174738,9.296e-05,190.63,190.62,1.16281967]
[1738862174952,9.296e-05,190.63,190.62,3.16281967]
[1738862175138,9.296e-05,190.63,190.62,35.7001582]
[1738862175355,9.296e-05,190.63,190.62,173.9001582]
[1738862175543,9.296e-05,190.63,190.62,172.11380853]
[1738862175757,9.296e-05,190.63,190.62,173.11380853]
[1738862175952,9.296e-05,190.63,190.62,172.11380853]
[1738862176157,9.296e-05,190.63,190.62,171.11380853]
[1738862176369,9.296e-05,190.63,190.62,176.35980853]
[1738862176573,9.296e-05,190.63,190.62,162.82247]
[1738862177062,9.296e-05,190.63,190.62,176.35980853]
[1738862177247,9.296e-05,190.63,190.62,162.82247]
[1738862177974,9.296e-05,190.63,190.62,176.35980853]
[1738862178173,9.296e-05,190.63,190.62,177.35980853]
[1738862178378,1.448e-05,190.65,190.64,2.50196]
[1738862178577,2.276e-05,190.67,190.66,34.78831853]
[1738862178780,2.276e-05,190.67,190.66,36.5745392]
[1738862178949,2.276e-05,190.67,190.66,35.5745392]
[1738862179351,4.722e-05,190.68,190.67,15.91380853]
[1738862179574,0.1070013,190.69,190.68,15.78831853]
[1738862179575,4.852e-05,190.69,190.68,15.78831853]
[1738862179872,4.852e-05,190.69,190.68,155.10347493]
[1738862180067,4.852e-05,190.69,190.68,154.31739585]
[1738862180392,4.852e-05,190.69,190.68,158.23261853]
[1738862180880,4.852e-05,190.69,190.68,157.35810853]
[1738862181058,4.852e-05,190.69,190.68,158.35810853]
[1738862181446,4.852e-05,190.69,190.68,157.35810853]
[1738862181647,4.852e-05,190.69,190.68,156.35810853]
[1738862181869,4.852e-05,190.69,190.68,156.23261853]
[1738862182456,4.852e-05,190.69,190.68,142.82077]
[1738862183052,4.852e-05,190.69,190.68,156.35810853]
[1738862183459,4.852e-05,190.69,190.68,156.23261853]
[1738862185289,4.852e-05,190.69,190.63,1.0]
[1738862185457,4.852e-05,190.69,190.64,6.03177686]
[1738862185654,21.19045487,190.68,190.63,6.0321615]
[1738862185959,21.19045487,190.66,190.62,0.81653973]
[1738862186263,21.19045487,190.64,190.62,0.03]
[1738862186655,21.19045487,190.66,190.62,0.03]
[1738862187063,21.19045487,190.67,190.62,0.03]
[1738862187774,21.19050339,190.69,190.62,20.8165722]
[1738862188660,21.19045487,190.65,190.62,20.03]
[1738862189048,21.19045487,190.66,190.62,20.03]
[1738862189260,21.19045487,190.68,190.62,5.276]
[1738862189466,21.19050339,190.69,190.63,0.78657241]
[1738862189666,21.19045487,190.68,190.63,0.78657241]
[1738862190247,21.19045487,190.67,190.62,0.03]
[1738862190473,21.19045487,190.65,190.62,0.03]
[1738862190847,21.19045487,190.66,190.62,0.03]
[1738862191267,21.19045487,190.65,190.62,0.03]
[1738862191457,21.19045487,190.64,190.62,0.03]
[1738862192675,21.19045487,190.65,190.62,0.03]
[1738862192864,21.19045487,190.63,190.62,0.03]
[1738862193169,21.29654344,190.63,190.62,0.03]
[1738862194971,21.82104344,190.63,190.62,0.03]
[1738862197071,24.82621657,190.63,190.62,0.03]
[1738862197371,21.19045487,190.56,190.5,5.279]
[1738862197555,21.19045487,190.53,190.5,0.03]
[1738862197757,30.0,190.59,190.5,0.03]
[1738862197758,21.19045487,190.52,190.5,0.03]
[1738862197957,21.19045487,190.54,190.5,0.03]
[1738862198158,21.19045487,190.55,190.5,0.03]
[1738862198377,21.19045487,190.53,190.5,0.03]
[1738862198569,21.19045487,190.52,190.5,0.03]
[1738862198860,21.19045487,190.51,190.5,0.03]
[1738862200169,21.71535487,190.51,190.5,0.03]
[1738862200859,21.19045487,190.53,190.5,0.03]
[1738862201388,21.19045487,190.55,190.5,0.03]
[1738862201564,21.19045487,190.58,190.51,0.787117]
[1738862202268,21.19045487,190.58,190.52,5.2487]
[1738862202465,21.19045487,190.59,190.53,0.78693669]
[1738862203058,21.19045487,190.59,190.53,0.67149809]
[1738862203254,21.19045487,190.58,190.52,6.03565447]
[1738862203463,21.19045487,190.59,190.52,6.03565447]
[1738862204090,21.19045487,190.57,190.52,5.2487]
[1738862204592,21.19045487,190.55,190.5,0.03]
[1738862204772,21.19045487,190.54,190.5,0.03]
[1738862205398,21.19045487,190.55,190.5,0.03]
[1738862206491,21.19045487,190.54,190.5,0.03]
[1738862206794,21.19045487,190.51,190.5,0.03]
[1738862207790,51.19045487,190.51,190.5,0.03]
[1738862207994,64.6023034,190.51,190.5,0.03]
[1738862208394,42.38090974,190.51,190.5,0.03]
[1738862208681,21.71535487,190.51,190.5,0.03]
[1738862209075,65.1272034,190.51,190.5,0.03]
[1738862209273,86.31765827,190.51,190.5,0.03]
[1738862209477,35.1272034,190.51,190.5,0.03]
[1738862209867,65.1272034,190.51,190.5,0.03]
[1738862210064,14.78831853,190.5,190.49,0.03]
[1738862210258,30.0,190.47,190.42,0.03]
[1738862210465,21.19045487,190.43,190.42,0.03]
[1738862210673,21.71555487,190.43,190.42,0.03]
[1738862210859,65.1274034,190.43,190.42,0.03]
[1738862211062,21.71555487,190.43,190.42,0.03]
[1738862211877,21.19045487,190.43,190.42,0.03]
[1738862212175,21.19045487,190.44,190.42,0.03]
[1738862212359,21.19045487,190.43,190.42,0.03]
[1738862213187,21.30226372,190.43,190.42,0.03]
[1738862215374,0.11180885,190.43,190.42,0.03]
[1738862216576,0.11180885,190.43,190.42,0.81745169]
[1738862218591,8.85e-06,190.43,190.42,6.57091169]
[1738862219098,8.85e-06,190.43,190.42,6.06895169]
[1738862220896,8.85e-06,190.43,190.42,0.03]
[1738862221815,21.19046372,190.43,190.42,0.03]
[1738862222006,51.19046372,190.43,190.42,0.03]
[1738862222197,30.0,190.41,190.4,0.03]
[1738862222403,51.19045487,190.41,190.4,0.03]
[1738862222597,85.79275827,190.41,190.32,0.03]
[1738862222799,21.19045487,190.33,190.32,0.03]
[1738862223108,21.19045487,190.4,190.32,0.03]
[1738862223310,21.19045487,190.37,190.32,0.03]
[1738862223499,21.19045487,190.35,190.32,0.03]
[1738862224196,21.19045487,190.34,190.32,0.03]
[1738862224397,21.19045487,190.33,190.32,0.03]
[1738862225228,0.5252,190.37,190.32,0.03]
[1738862225229,21.19045487,190.34,190.32,0.03]
[1738862225526,21.19045487,190.33,190.32,0.03]
[1738862226329,21.19045487,190.38,190.32,0.03]
[1738862226534,21.19045487,190.39,190.32,0.03]
[1738862226738,21.19045487,190.37,190.32,0.03]
[1738862227027,21.19045487,190.33,190.32,0.03]
[1738862228821,21.71585487,190.33,190.32,0.03]
[1738862229317,35.2531934,190.33,190.32,0.03]
[1738862229501,21.71585487,190.33,190.32,0.03]
[1738862229699,21.19045487,190.33,190.32,0.03]
[1738862232021,21.71585487,190.33,190.32,0.03]
[1738862232205,65.2531934,190.33,190.32,0.03]
[1738862232405,21.19045487,190.33,190.32,0.03]
[1738862232725,21.19045487,190.35,190.32,0.03]
[1738862232936,21.19045487,190.34,190.32,0.03]
[1738862233224,21.29323876,190.33,190.32,0.03]
[1738862234113,0.10278389,190.33,190.32,0.03]
[1738862234297,21.29323876,190.33,190.32,0.03]
[1738862234913,21.81863876,190.33,190.32,0.03]
[1738862236121,103.91863876,190.33,190.32,0.03]
[1738862236928,103.39323876,190.33,190.32,0.03]
[1738862237224,103.91863876,190.33,190.32,0.03]
[1738862237611,103.39323876,190.33,190.32,0.03]
[1738862237825,103.91863876,190.33,190.32,0.03]
[1738862238606,103.39323876,190.33,190.32,0.03]
[1738862239526,82.20278389,190.33,190.32,0.03]
[1738862239712,103.39323876,190.33,190.32,0.03]
[1738862240506,103.91863876,190.33,190.32,0.03]
[1738862240721,95.99612501,190.33,190.32,0.03]
[1738862242013,109.53346354,190.33,190.32,0.03]
[1738862242219,43.53733853,190.31,190.3,0.03]
[1738862242509,70.07322077,190.31,190.29,0.03]
[1738862242720,26.53588224,190.3,190.29,0.03]
[1738862243513,41.07322077,190.3,190.29,0.03]
[1738862243715,41.59862077,190.3,190.29,0.03]
[1738862244317,30.0,190.29,190.26,0.03]
[1738862244529,30.0,190.29,190.16,0.81845655]
[1738862244530,20.0,190.23,190.16,0.03]
[1738862244728,84.79983487,190.23,190.16,0.03]
[1738862245033,13.53733853,190.22,190.16,0.03]
[1738862245224,21.26249634,190.17,190.16,0.03]
[1738862246018,21.26249634,190.2,190.16,0.03]
[1738862246216,21.26249634,190.21,190.16,0.03]
[1738862246419,21.26249634,190.18,190.16,0.03]
[1738862246611,30.0,190.23,190.16,0.03]
[1738862246612,21.26249634,190.17,190.16,0.03]
[1738862249936,21.78829634,190.17,190.16,0.03]
[1738862252221,51.91378634,190.17,190.16,0.03]
[1738862252737,30.0,190.15,190.13,0.03]
[1738862252942,21.26249634,190.14,190.13,0.03]
[1738862253440,34.92532487,190.14,190.13,0.03]
[1738862253638,34.92532487,190.14,190.09,0.03]
[1738862253639,30.0,190.11,190.09,0.03]
[1738862253826,21.78849634,190.1,190.09,0.03]
[1738862254136,30.0,190.08,190.06,1.0]
[1738862254330,21.26249634,190.07,190.06,1.0]
[1738862257129,51.38798634,190.07,190.06,1.0]
[1738862257332,64.79983487,190.07,190.06,1.0]
[1738862257842,65.32593487,190.07,190.06,1.0]
[1738862258041,21.78859634,190.07,190.06,1.0]
[1738862258257,21.26249634,190.07,190.06,1.0]
[1738862260528,21.78859634,190.07,190.06,1.0]
[1738862261126,51.78859634,190.07,190.06,1.0]
[1738862261446,65.32593487,190.07,190.06,1.0]
[1738862262038,21.78859634,190.07,190.06,1.0]
[1738862262239,21.26249634,190.07,190.06,1.0]
[1738862262850,21.26249634,190.08,190.06,1.0]
[1738862263048,2.1412,190.12,190.06,1.0]
[1738862263049,21.26249634,190.1,190.06,6.2612]
[1738862263253,21.26249634,190.08,190.06,1.0]
[1738862263436,21.26249634,190.07,190.06,1.03]
[1738862264035,21.26249634,190.09,190.06,1.03]
[1738862265351,21.26249634,190.07,190.06,1.03]
[1738862266649,65.20044487,190.07,190.06,1.03]
[1738862267536,66.18727603,190.07,190.06,1.03]
[1738862267738,65.20044487,190.07,190.06,1.03]
[1738862267933,35.20044487,190.07,190.06,1.03]
[1738862268148,65.20044487,190.07,190.06,1.03]
[1738862269328,65.45142487,190.07,190.06,1.03]
[1738862269535,66.43827472,190.07,190.06,1.03]
[1738862269755,65.45142487,190.07,190.06,1.03]
[1738862270647,65.32593487,190.07,190.06,1.03]
[1738862270834,65.20044487,190.07,190.06,1.03]
[1738862271036,35.20044487,190.07,190.06,1.03]